[Event "White Rook U14 Final 2019"]
[Site "Sochi"]
[Date "2019.06.07"]
[Round "6.1"]
[White "Putrenko, Kirill"]
[Black "Tugstumur, Yesuntumur"]
[Result "0-1"]
[ECO "E91"]
[WhiteElo "2010"]
[BlackElo "2356"]
[Annotator "ChessBase"]
[PlyCount "188"]
[EventDate "2019.06.02"]
[EventCountry "RUS"]
[SourceTitle "playchess.com"]
[Source "ChessBase"]
[SourceQuality "1"]
[TimeControl "5400+30"]

1. d4 {[%emt 0:10:13]} Nf6 {[%emt 0:09:31]} 2. c4 {[%emt 0:01:49]} g6 {[%emt 0:01:18]} 3. Nc3 {[%emt 0:01:39]} Bg7 {[%emt 0:00:36]} 4. e4 {[%emt 0:01:40]} d6 {[%emt 0:03:12]} 5. Be2 {[%emt 0:06:30]} O-O {[%emt 0:08:26]} 6. Bg5 {[%emt 0:03:53]} c5 {[%emt 0:07:48]} 7. Nf3 {[%emt 0:00:43]} cxd4 {[%emt 0:00:08]} 8. Nxd4 {[%emt 0:05:32]} Nc6 {[%emt 0:01:33]} 9. Be3 {[%emt 0:00:29]} Bd7 {[%emt 0:02:21]} 10. O-O {[%emt 0:04:34]} a6 {[%emt 0:00:04]} 11. Qd2 {[%emt 0:04:47]} Rc8 {[%emt 0:02:24]} 12. f3 {[%emt 0:01:15]} Re8 {[%emt 0:02:33]} 13. Rfd1 {[%emt 0:04:42]} Nxd4 {[%emt 0:08:22]} 14. Bxd4 {[%emt 0:11:19]} Be6 {[%emt 0:05:15]} 15. Nd5 {[%emt 0:01:29]} Bxd5 {[%emt 0:01:00]} 16. cxd5 {[%emt 0:03:15]} Nd7 {[%emt 0:05:05]} 17. Bxg7 {[%emt 0:06:13]} Kxg7 {[%emt 0:01:27]} 18. Qd4+ {[%emt 0:01:25]} Kg8 {[%emt 0:03:28]} 19. Rac1 {[%emt 0:03:58]} Rc7 {[%emt 0:00:08]} 20. Qe3 {[%emt 0:00:28]} Rxc1 {[%emt 0:02:46]} 21. Rxc1 {[%emt 0:01:23]} Qb8 {[%emt 0:01:35]} 22. Qc3 {[%emt 0:00:16]} Qa7+ {[%emt 0:00:46]} 23. Kf1 {[%emt 0:01:48]} Ne5 {[%emt 0:01:37]} 24. f4 {[%emt 0:01:23]} Nd7 {[%emt 0:00:18]} 25. Bg4 {[%emt 0:00:31]} Nf6 {[%emt 0:02:08]} 26. Bf3 {[%emt 0:00:29]} Qb6 {[%emt 0:05:09]} 27. b3 {[%emt 0:03:54]} Rf8 {[%emt 0:00:25]} 28. Ke2 {[%emt 0:02:31]} Qb5+ {[%emt 0:00:57]} 29. Qc4 {[%emt 0:00:30]} Qa5 {[%emt 0:01:44]} 30. Rc2 {[%emt 0:00:24]} Ne8 {[%emt 0:02:04]} 31. e5 {[%emt 0:01:38]} Ng7 {[%emt 0:04:12]} 32. g4 {[%emt 0:01:07]} b5 {[%emt 0:00:00]} 33. Qc3 {[%emt 0:00:42]} Qb6 {[%emt 0:00:47]} 34. Qe3 {[%emt 0:00:54]} Qa5 {[%emt 0:00:19]} 35. Qc3 {[%emt 0:01:24]} Qb6 {[%emt 0:01:00]} 36. Qe3 {[%emt 0:01:13]} Qb8 {[%emt 0:00:24]} 37. Rc6 {[%emt 0:01:41]} dxe5 {[%emt 0:02:04]} 38. Qxe5 {[%emt 0:00:29]} Qa7 {[%emt 0:00:34]} 39. Qe3 {[%emt 0:02:33]} Qb8 {[%emt 0:00:00]} 40. Rxa6 {[%emt 0:03:06]} g5 {[%emt 0:01:18]} 41. f5 {[%emt 0:01:04]} Qxh2+ {[%emt 0:00:36]} 42. Qf2 {[%emt 0:00:26]} Qc7 {[%emt 0:02:45]} 43. Rc6 {[%emt 0:00:31]} Qa5 {[%emt 0:01:48]} 44. Rc2 {[%emt 0:00:36]} Qa6 {[%emt 0:00:05]} 45. Qe3 {[%emt 0:00:15]} f6 {[%emt 0:00:18]} 46. Kf2 {[%emt 0:00:07]} Qd6 {[%emt 0:00:42]} 47. Kg2 {[%emt 0:01:05]} Ra8 {[%emt 0:01:23]} 48. Re2 {[%emt 0:00:23]} Kf8 {[%emt 0:00:38]} 49. Qd3 {[%emt 0:01:31]} b4 {[%emt 0:00:51]} 50. Qc4 {[%emt 0:00:20]} Ne8 {[%emt 0:00:10]} 51. Qc6 {[%emt 0:00:25]} Ra7 {[%emt 0:01:05]} 52. Qxd6 {[%emt 0:00:20]} Nxd6 {[%emt 0:00:09]} 53. Kf1 {[%emt 0:00:37]} Rc7 {[%emt 0:00:19]} 54. Ke1 {[%emt 0:00:15]} Rc3 {[%emt 0:00:29]} 55. Kf2 {[%emt 0:00:13]} Ke8 {[%emt 0:00:16]} 56. Rd2 {[%emt 0:00:50]} Kd7 {[%emt 0:01:57]} 57. Rd4 {[%emt 0:00:35]} Rc2+ {[%emt 0:01:27]} 58. Ke1 {[%emt 0:00:07]} Rxa2 {[%emt 0:00:05]} 59. Rxb4 {[%emt 0:00:06]} Kc7 {[%emt 0:00:01]} 60. Rd4 {[%emt 0:00:14]} Rb2 {[%emt 0:00:07]} 61. Rd3 {[%emt 0:00:44]} Nb7 {[%emt 0:00:42]} 62. Rc3+ {[%emt 0:02:35]} Kd6 {[%emt 0:00:06]} 63. Rc6+ {[%emt 0:00:47]} Kd7 {[%emt 0:00:17]} 64. Rc3 {[%emt 0:00:05]} Na5 {[%emt 0:00:49]} 65. Bd1 {[%emt 0:00:15]} Kd6 {[%emt 0:00:05]} 66. Re3 {[%emt 0:00:23]} Nb7 {[%emt 0:00:04]} 67. Re6+ {[%emt 0:00:00]} Kd7 {[%emt 0:00:09]} 68. Re3 {[%emt 0:00:14]} Nc5 {[%emt 0:00:04]} 69. Rh3 {[%emt 0:00:00]} Kd6 {[%emt 0:00:06]} 70. Rxh7 {[%emt 0:00:00]} Nd3+ {[%emt 0:00:06]} 71. Kf1 {[%emt 0:00:13]} Rf2+ {[%emt 0:00:06]} 72. Kg1 {[%emt 0:00:07]} Rd2 {[%emt 0:00:09]} 73. Bf3 {[%emt 0:00:05]} Ne5 {[%emt 0:00:03]} 74. Rh3 {[%emt 0:00:06]} Rb2 {[%emt 0:00:04]} 75. Bg2 {[%emt 0:00:04]} Nxg4 {[%emt 0:00:03]} 76. Rd3 {[%emt 0:00:12]} Rb1+ {[%emt 0:00:07]} 77. Bf1 {[%emt 0:00:03]} Nh2 {[%emt 0:00:05]} 78. Kxh2 {[%emt 0:00:11]} Rxf1 {[%emt 0:00:04]} 79. Re3 {[%emt 0:00:08]} Rxf5 {[%emt 0:00:05]} 80. Re6+ {[%emt 0:00:04]} Kd7 {[%emt 0:00:03]} 81. Rb6 {[%emt 0:00:00]} Rxd5 {[%emt 0:00:07]} 82. Rb7+ {[%emt 0:10:55]} Ke6 {[%emt 0:17:39]} 83. Rb6+ {[%emt 0:00:30]} Kf5 {[%emt 0:00:30]} 84. b4 {[%emt 0:00:30]} e5 {[%emt 0:00:30]} 85. Rc6 {[%emt 0:00:30]} Rd2+ {[%emt 0:00:30]} 86. Kg3 {[%emt 0:00:30]} Rb2 {[%emt 0:00:30]} 87. Rc4 {[%emt 0:00:30]} Rb3+ {[%emt 0:00:30]} 88. Kf2 {[%emt 0:00:30]} g4 {[%emt 0:00:30]} 89. Kg2 {[%emt 0:00:30]} e4 {[%emt 0:00:30]} 90. Kf2 {[%emt 0:00:30]} Kf4 {[%emt 0:00:30]} 91. Kg2 {[%emt 0:00:30]} f5 {[%emt 0:00:30]} 92. Kf2 {[%emt 0:00:30]} g3+ {[%emt 0:00:30]} 93. Kg2 {[%emt 0:00:30]} Rb2+ {[%emt 0:00:30]} 94. Kg1 {[%emt 0:00:30]} Kf3 {[%emt 0:00:30]} 0-1

[Event "White Rook U14 Final 2019"]
[Site "Sochi"]
[Date "2019.06.07"]
[Round "6.2"]
[White "Munkhzul, Davaakhuu"]
[Black "Ismagilov, Igor"]
[Result "1/2-1/2"]
[ECO "B45"]
[WhiteElo "1806"]
[BlackElo "1803"]
[Annotator "NA"]
[PlyCount "108"]
[EventDate "2019.06.02"]
[EventCountry "RUS"]
[SourceTitle "playchess.com"]
[Source "ChessBase"]
[SourceQuality "1"]
[TimeControl "5400+30"]

1. e4 {[%emt 1:30:00]} c5 {[%emt 0:05:39]} 2. Nf3 {[%emt 0:00:00]} Nc6 {[%emt 0:00:00]} 3. d4 {[%emt 0:00:00]} cxd4 {[%emt 0:00:00]} 4. Nxd4 {[%emt 0:00:00]} Nf6 {[%emt 0:00:00]} 5. Nc3 {[%emt 0:00:00]} e6 {[%emt 0:00:00]} 6. Ndb5 {[%emt 0:00:00]} Bb4 {[%emt 0:00:00]} 7. a3 {[%emt 0:00:00]} Bxc3+ {[%emt 0:00:00]} 8. Nxc3 {[%emt 0:00:00]} d5 {[%emt 0:00:00]} 9. exd5 {[%emt 0:00:00]} exd5 {[%emt 0:00:00]} 10. Bd3 {[%emt 0:00:00]} O-O {[%emt 0:00:00]} 11. O-O {[%emt 0:00:00]} d4 {[%emt 0:00:00]} 12. Ne2 {[%emt 0:00:00]} Bg4 {[%emt 0:00:00]} 13. f3 {[%emt 0:00:00]} Bh5 {[%emt 0:00:00]} 14. Qe1 {[%emt 0:00:00]} Bg6 {[%emt 0:00:00]} 15. Bxg6 {[%emt 0:00:00]} hxg6 {[%emt 0:00:00]} 16. Qf2 {[%emt 0:00:00]} Qb6 {[%emt 0:00:00]} 17. Rd1 {[%emt 0:00:00]} Rfd8 {[%emt 0:00:00]} 18. b3 {[%emt 0:00:00]} Rd7 {[%emt 0:00:00]} 19. Bb2 {[%emt 0:00:00]} Rad8 {[%emt 0:00:00]} 20. Rd3 {[%emt 0:00:00]} Qc5 {[%emt 0:00:00]} 21. Rd2 {[%emt 0:00:00]} b6 {[%emt 0:00:00]} 22. Rad1 {[%emt 0:00:00]} d3 {[%emt 0:00:00]} 23. cxd3 {[%emt 0:00:00]} Na5 {[%emt 0:00:00]} 24. Qxc5 {[%emt 0:00:00]} bxc5 {[%emt 0:00:00]} 25. Nc1 {[%emt 0:00:00]} Rb7 {[%emt 0:00:00]} 26. Bxf6 {[%emt 0:00:00]} gxf6 {[%emt 0:00:00]} 27. Rb2 {[%emt 0:00:00]} Rdb8 {[%emt 0:00:00]} 28. d4 {[%emt 0:00:00]} Nxb3 {[%emt 0:00:00]} 29. Nxb3 {[%emt 0:00:00]} c4 {[%emt 0:00:00]} 30. d5 {[%emt 0:00:00]} cxb3 {[%emt 0:00:00]} 31. d6 {[%emt 0:00:00]} Rd7 {[%emt 0:00:00]} 32. Rd3 {[%emt 0:00:00]} Rb6 {[%emt 0:00:00]} 33. Rbxb3 {[%emt 0:00:00]} Rbxd6 {[%emt 0:00:00]} 34. Rxd6 {[%emt 0:00:00]} Rxd6 {[%emt 0:00:00]} 35. Rb4 {[%emt 0:00:00]} Ra6 {[%emt 0:00:00]} 36. a4 {[%emt 0:00:00]} f5 {[%emt 0:00:00]} 37. Kf2 {[%emt 0:00:00]} Kf8 {[%emt 0:00:00]} 38. Ke3 {[%emt 0:00:00]} Ke7 {[%emt 1:43:21]} 39. h4 {[%emt 0:19:30]} Ra5 {[%emt 0:00:30]} 40. Kf4 {[%emt 0:00:30]} Kf6 {[%emt 0:00:30]} 41. Rd4 {[%emt 0:00:30]} Ra6 {[%emt 0:00:30]} 42. Rc4 {[%emt 0:00:30]} Ra5 {[%emt 0:00:30]} 43. Rc6+ {[%emt 0:00:30]} Kg7 {[%emt 0:00:30]} 44. Rc4 {[%emt 0:00:30]} Kf6 {[%emt 0:00:30]} 45. g4 {[%emt 0:00:30]} fxg4 {[%emt 0:00:30]} 46. fxg4 {[%emt 0:00:30]} g5+ {[%emt 0:00:30]} 47. hxg5+ {[%emt 0:00:30]} Kg6 {[%emt 0:00:30]} 48. Rd4 {[%emt 0:00:30]} Ra6 {[%emt 0:00:30]} 49. Re4 {[%emt 0:00:30]} Ra5 {[%emt 0:00:30]} 50. Rd4 {[%emt 0:00:30]} Ra6 {[%emt 0:00:30]} 51. Rc4 {[%emt 0:00:30]} Ra5 {[%emt 0:00:30]} 52. Rc6+ {[%emt 0:00:30]} Kg7 {[%emt 0:00:30]} 53. Rc4 {[%emt 0:00:30]} Kg6 {[%emt 0:00:30]} 54. Rb4 {[%emt 0:00:30]} Ra6 {[%emt 0:00:30]} 1/2-1/2

[Event "White Rook U14 Final 2019"]
[Site "Sochi"]
[Date "2019.06.07"]
[Round "6.3"]
[White "Khodko, Yurii N."]
[Black "Aldar Burentegsh"]
[Result "1-0"]
[ECO "B42"]
[WhiteElo "1727"]
[BlackElo "1812"]
[Annotator "NA"]
[PlyCount "120"]
[EventDate "2019.06.02"]
[EventCountry "RUS"]
[SourceTitle "playchess.com"]
[Source "ChessBase"]
[SourceQuality "1"]
[TimeControl "5400+30"]

1. e4 {[%emt 0:15:01]} c5 {[%emt 0:04:36]} 2. Nf3 {[%emt 0:02:27]} e6 {[%emt 0:02:13]} 3. d4 {[%emt 0:06:44]} cxd4 {[%emt 0:01:11]} 4. Nxd4 {[%emt 0:07:50]} a6 {[%emt 0:01:45]} 5. Bd3 {[%emt 0:01:54]} Qc7 {[%emt 0:03:17]} 6. O-O {[%emt 0:05:44]} Nc6 {[%emt 0:01:40]} 7. Be3 {[%emt 0:00:05]} Nf6 {[%emt 0:01:02]} 8. c4 {[%emt 0:01:58]} Be7 {[%emt 0:00:11]} 9. h3 {[%emt 0:00:35]} O-O {[%emt 0:00:01]} 10. Nc3 {[%emt 0:00:26]} d6 {[%emt 0:00:32]} 11. Rc1 {[%emt 0:00:25]} Bd7 {[%emt 0:05:40] B42: Sicilian: Kan Variation: 5 Bd3} (11... Ne5 12. Be2 b6 13. f3 Bb7 14. Na4 Ned7 15. Qd2 Rac8 16. Rfd1 Rfe8 17. Bf1 Qb8 18. Qf2 Bd8 19. b4 {1-0 (55) Malakhov,V (2675)-Zivkovic,V (2429) Kallithea 2008}) 12. Nd5 $146 {[%emt 0:00:02]} ({Predecessor:} 12. a3 Rac8 13. f4 Nxd4 14. Bxd4 Bc6 15. Qe2 e5 16. Be3 Nd7 17. f5 Nf6 18. b4 Bd7 19. g4 {1-0 (28) Brkic,I (2087)-Stancic,K Zadar 2004}) 12... Qd8 {[%emt 0:00:04]} 13. Nxc6 {[%emt 0:01:21]} Bxc6 {[%emt 0:04:07]} 14. Bb6 {[%emt 0:02:18]} Qd7 {[%emt 0:10:26]} 15. Nxe7+ {[%emt 0:06:37]} Qxe7 {[%emt 0:00:10]} 16. Qe2 {[%emt 0:00:04]} Rac8 {[%emt 0:00:18]} 17. b4 {[%emt 0:01:22]} Nd7 {[%emt 0:00:20]} 18. Bd4 {[%emt 0:00:39]} Ne5 {[%emt 0:00:52]} 19. Bb1 {[%emt 0:02:48]} Ng6 {[%emt 0:02:38]} 20. b5 {[%emt 0:02:56]} Bd7 {[%emt 0:01:29]} 21. Be3 {[%emt 0:01:00]} e5 {[%emt 0:01:23]} 22. Rfd1 {[%emt 0:00:24]} axb5 {[%emt 0:00:06]} 23. cxb5 {[%emt 0:03:03]} Rxc1 {[%emt 0:00:05]} 24. Rxc1 {[%emt 0:00:09]} Rc8 {[%emt 0:08:27]} 25. Rxc8+ {[%emt 0:00:39]} Bxc8 {[%emt 0:00:31]} 26. a4 {[%emt 0:00:04]} Qc7 {[%emt 0:00:19]} 27. Qc2 {[%emt 0:00:39]} Qxc2 {[%emt 0:00:53]} 28. Bxc2 {[%emt 0:00:05]} Kf8 {[%emt 0:00:09]} 29. Bb3 {[%emt 0:04:41]} Ke8 {[%emt 0:01:05]} 30. Kf1 {[%emt 0:01:44]} Be6 {[%emt 0:00:44]} 31. Bxe6 {[%emt 0:00:05]} fxe6 $16 {[%emt 0:00:16]} 32. Ke2 {[%emt 0:00:22]} Kd7 {[%emt 0:02:14]} 33. g3 {[%emt 0:00:11]} d5 {[%emt 0:00:05]} 34. Bc5 {[%emt 0:00:03]} d4 {[%emt 0:00:20]} 35. a5 {[%emt 0:00:04]} h5 {[%emt 0:00:17]} 36. h4 {[%emt 0:00:09]} Kc7 {[%emt 0:04:15]} 37. Kd3 {[%emt 0:00:04]} Nh8 {[%emt 0:00:10]} 38. Bf8 {[%emt 0:00:03]} g6 {[%emt 0:01:18]} 39. Bg7 {[%emt 0:00:05]} Nf7 {[%emt 0:00:10]} 40. f4 {[%emt 0:00:05]} Kd6 {[%emt 0:00:07]} 41. Kc4 {[%emt 0:00:04]} exf4 {[%emt 0:00:19]} 42. gxf4 {[%emt 0:00:08]} d3 {[%emt 0:00:09]} 43. Bf8+ {[%emt 0:00:05]} Kd7 {[%emt 0:00:02]} 44. Kxd3 {[%emt 0:00:35]} e5 {[%emt 0:46:04]} 45. Ke3 {[%emt 0:36:43]} Nd8 {[%emt 0:00:30]} 46. f5 {[%emt 0:00:30]} gxf5 {[%emt 0:00:30]} 47. exf5 {[%emt 0:00:30]} Ke8 {[%emt 0:00:30]} 48. a6 {[%emt 0:00:30]} bxa6 {[%emt 0:00:30]} 49. bxa6 {[%emt 0:00:30]} Nc6 {[%emt 0:00:30]} 50. Bc5 {[%emt 0:00:30]} Kf7 {[%emt 0:00:30]} 51. a7 {[%emt 0:00:30]} Nxa7 {[%emt 0:00:30]} 52. Bxa7 {[%emt 0:00:30]} Ke7 {[%emt 0:00:30]} 53. Ke4 {[%emt 0:00:30]} Kf6 {[%emt 0:00:30]} 54. Be3 {[%emt 0:00:30]} Kf7 {[%emt 0:00:30]} 55. Kxe5 {[%emt 0:00:30]} Ke7 {[%emt 0:00:30]} 56. Bg5+ {[%emt 0:00:30]} Kf7 {[%emt 0:00:30]} 57. f6 {[%emt 0:00:30]} Ke8 {[%emt 0:00:30]} 58. Ke6 {[%emt 0:00:30]} Kd8 {[%emt 0:00:30]} 59. f7+ {[%emt 0:00:30]} Kc7 {[%emt 0:00:30]} 60. f8=Q {[%emt 0:00:30]} Kc6 {[%emt 0:00:30]} 1-0

[Event "White Rook U14 Final 2019"]
[Site "Sochi"]
[Date "2019.06.07"]
[Round "6.4"]
[White "Unurzul, Davaakhuu"]
[Black "Loviagina, Dariana"]
[Result "0-1"]
[ECO "B28"]
[WhiteElo "1442"]
[BlackElo "1297"]
[Annotator "NA"]
[PlyCount "118"]
[EventDate "2019.06.02"]
[EventCountry "RUS"]
[SourceTitle "playchess.com"]
[Source "ChessBase"]
[SourceQuality "1"]
[TimeControl "5400+30"]

1. e4 {[%emt 1:30:00]} c5 {[%emt 0:44:53]} 2. Nf3 {[%emt 0:00:00]} a6 {[%emt 0:00:00]} 3. d4 {[%emt 0:00:00]} cxd4 {[%emt 0:00:00]} 4. Nxd4 {[%emt 0:00:00]} Nf6 {[%emt 0:00:00]} 5. Nc3 {[%emt 0:00:00]} e5 {[%emt 0:00:00]} 6. Nb3 {[%emt 0:00:00]} Bb4 {[%emt 0:00:00]} 7. Bd3 {[%emt 0:00:00]} d5 {[%emt 0:00:00]} 8. exd5 {[%emt 0:00:00]} Nxd5 {[%emt 0:00:00]} 9. Bd2 {[%emt 0:00:00]} Nxc3 {[%emt 0:00:00]} 10. bxc3 {[%emt 0:00:00]} Bd6 {[%emt 0:00:00]} 11. O-O {[%emt 0:00:00]} O-O {[%emt 0:00:00]} 12. Qh5 {[%emt 0:00:00]} f5 {[%emt 0:00:00]} 13. Bc4+ {[%emt 0:00:00]} Kh8 {[%emt 0:00:00]} 14. Rad1 {[%emt 0:00:00]} Qe8 {[%emt 0:00:00]} 15. Qh4 {[%emt 0:00:00]} Qg6 {[%emt 0:00:00]} 16. Be2 {[%emt 0:00:00]} f4 {[%emt 0:00:00]} 17. f3 {[%emt 0:00:00]} Bf5 {[%emt 0:00:00]} 18. Bd3 {[%emt 0:00:00]} Bxd3 {[%emt 0:00:00]} 19. cxd3 {[%emt 0:00:00]} Nc6 {[%emt 0:00:00]} 20. Bc1 {[%emt 0:00:00]} Rf5 {[%emt 0:00:00]} 21. d4 {[%emt 0:00:00]} Rg5 {[%emt 0:00:00]} 22. Qf2 {[%emt 0:00:00]} exd4 {[%emt 0:00:00]} 23. cxd4 {[%emt 0:00:00]} Nb4 {[%emt 0:00:00]} 24. Rd2 {[%emt 0:00:00]} Nd5 {[%emt 0:00:00]} 25. Re2 {[%emt 0:00:00]} Qh5 {[%emt 0:00:00]} 26. Rfe1 {[%emt 0:00:00]} Ne3 {[%emt 0:00:00]} 27. Bxe3 {[%emt 0:00:00]} fxe3 {[%emt 0:00:00]} 28. Rxe3 {[%emt 0:00:00]} Bxh2+ {[%emt 0:00:00]} 29. Kf1 {[%emt 0:00:00]} Bg3 {[%emt 0:00:00]} 30. Qg1 {[%emt 0:00:00]} Bxe1 {[%emt 0:00:00]} 31. Rxe1 {[%emt 0:00:00]} Rf8 {[%emt 0:00:00]} 32. Re3 {[%emt 0:00:00]} Qg6 {[%emt 0:00:00]} 33. Nd2 {[%emt 0:00:00]} Qc2 {[%emt 0:00:00]} 34. Ke2 {[%emt 0:00:00]} Qxa2 {[%emt 0:00:00]} 35. Qh2 {[%emt 0:00:00]} Qd5 {[%emt 0:00:00]} 36. Re4 {[%emt 0:00:00]} Qb5+ {[%emt 0:00:00]} 37. Ke3 {[%emt 0:00:00]} Rh5 {[%emt 0:00:00]} 38. Qd6 {[%emt 0:00:00]} Qg5+ {[%emt 0:00:00]} 39. Kd3 {[%emt 0:00:00]} Rd8 {[%emt 0:00:00]} 40. Qe6 {[%emt 0:00:00]} Qb5+ {[%emt 0:00:00]} 41. Ke3 {[%emt 0:00:00]} Rg8 {[%emt 0:00:00]} 42. f4 {[%emt 0:00:00]} a5 {[%emt 0:00:00]} 43. Re5 {[%emt 0:00:00]} Rxe5+ {[%emt 0:00:00]} 44. fxe5 {[%emt 0:00:00]} a4 {[%emt 0:00:00]} 45. d5 {[%emt 0:00:00]} Rd8 {[%emt 0:00:00]} 46. d6 {[%emt 0:00:00]} Re8 {[%emt 0:00:00]} 47. Qc4 {[%emt 0:00:00]} Qxe5+ {[%emt 1:08:37]} 48. Ne4 {[%emt 0:24:00]} Qxd6 {[%emt 0:00:30]} 49. Qxa4 {[%emt 0:00:30]} Qe5 {[%emt 0:00:30]} 50. Kf3 {[%emt 0:00:30]} b5 {[%emt 0:00:30]} 51. Qb4 {[%emt 0:00:30]} Qf5+ {[%emt 0:00:30]} 52. Ke3 {[%emt 0:00:30]} h6 {[%emt 0:00:30]} 53. g3 {[%emt 0:00:30]} Qxe4+ {[%emt 0:00:30]} 54. Qxe4 {[%emt 0:00:30]} Rxe4+ {[%emt 0:00:30]} 55. Kxe4 {[%emt 0:00:30]} Kh7 {[%emt 0:00:30]} 56. Kd5 {[%emt 0:00:30]} Kg6 {[%emt 0:00:30]} 57. Kc5 {[%emt 0:00:30]} Kg5 {[%emt 0:00:30]} 58. Kxb5 {[%emt 0:00:30]} Kg4 {[%emt 0:00:30]} 59. Kc4 {[%emt 0:00:30]} Kxg3 {[%emt 0:00:30]} 0-1

[Event "White Rook U14 Final 2019"]
[Site "Sochi"]
[Date "2019.06.07"]
[Round "6.5"]
[White "Abrazevich, Yauheni"]
[Black "Sizov, Lev"]
[Result "1/2-1/2"]
[ECO "B15"]
[WhiteElo "1888"]
[BlackElo "1692"]
[Annotator "NA"]
[PlyCount "81"]
[EventDate "2019.06.02"]
[EventCountry "RUS"]
[SourceTitle "playchess.com"]
[Source "ChessBase"]
[SourceQuality "1"]
[TimeControl "5400+30"]

1. e4 {[%emt 0:04:58]} c6 {[%emt 0:32:05]} 2. d4 {[%emt 0:05:11]} d5 {[%emt 0:04:57]} 3. Nd2 {[%emt 0:03:53]} dxe4 {[%emt 0:01:56]} 4. Nxe4 {[%emt 0:06:32]} Nf6 {[%emt 0:07:03]} 5. Nxf6+ {[%emt 0:04:29]} exf6 {[%emt 0:12:59]} 6. Be3 {[%emt 0:02:45]} Bd6 {[%emt 0:01:34] B15: Caro-Kann: 3 Nc3: 3...g6 and 3...dxe4 4 Nxe4 Nf6 5 Nxf6+ exf6} 7. Bd3 {[%emt 0:00:42]} O-O {[%emt 0:03:03]} 8. Qh5 {[%emt 0:02:54]} (8. Ne2 Re8 9. Qd2 Bg4 10. O-O Nd7 11. c4 Bxe2 12. Qxe2 Qc7 13. h3 c5 14. Qc2 {½-½ (37) Li,C (2613)-Zhao,Z (2592) Parramatta 2010}) 8... f5 $146 {[%emt 0:00:20]} ({Predecessor:} 8... g6 9. Qf3 Be6 10. Ne2 Re8 11. Nf4 Bxf4 12. Qxf4 Nd7 13. h4 Nb6 14. b3 {0-1 (42) Musaev,R (2312)-Tsydypov,Z (2451) St Petersburg 2016}) 9. O-O-O {[%emt 0:00:23]} g6 {[%emt 0:01:33]} 10. Qf3 {[%emt 0:00:11]} Nd7 {[%emt 0:00:40]} 11. h3 {[%emt 0:02:07]} Qf6 {[%emt 0:00:17]} 12. Ne2 {[%emt 0:00:30]} a5 {[%emt 0:00:06]} 13. h4 {[%emt 0:00:54]} a4 {[%emt 0:00:51]} 14. c3 {[%emt 0:08:02]} Nb6 {[%emt 0:03:02]} 15. Bg5 {[%emt 0:00:12]} Qe6 {[%emt 0:04:08]} 16. Kb1 {[%emt 0:03:57]} Qd5 {[%emt 0:01:57]} 17. Qxd5 {[%emt 0:02:44]} cxd5 {[%emt 0:00:00]} 18. Bf4 {[%emt 0:00:20]} Bxf4 {[%emt 0:00:19]} 19. Nxf4 {[%emt 0:00:16]} Bd7 {[%emt 0:01:26]} 20. Be2 {[%emt 0:00:03]} Rfe8 {[%emt 0:02:37]} 21. Bf3 {[%emt 0:03:18]} Bc6 {[%emt 0:00:44]} 22. Rhe1 {[%emt 0:02:31]} Kf8 {[%emt 0:01:56]} 23. b3 {[%emt 0:01:41]} axb3 {[%emt 0:00:08]} 24. axb3 {[%emt 0:01:43]} Kg7 {[%emt 0:00:39]} 25. Kb2 {[%emt 0:00:45]} Kf6 {[%emt 0:00:39]} 26. Rxe8 {[%emt 0:04:39]} Rxe8 {[%emt 0:02:22]} 27. Nd3 {[%emt 0:00:36]} Kg7 {[%emt 0:00:34]} 28. Re1 {[%emt 0:00:50]} Rxe1 {[%emt 0:00:35]} 29. Nxe1 {[%emt 0:00:05]} Kf6 {[%emt 0:00:29]} 30. Nd3 {[%emt 0:00:14]} Ke7 {[%emt 0:02:02]} 31. g3 {[%emt 0:03:24]} f6 {[%emt 0:02:33]} 32. Nb4 {[%emt 0:35:11]} Kd6 {[%emt 0:12:26]} 33. Bg2 $14 {[%emt 0:00:30]} Kd7 {[%emt 0:00:30]} 34. f4 {[%emt 0:00:30]} Kd6 {[%emt 0:00:30]} 35. Nc2 {[%emt 0:00:30]} h5 {[%emt 0:00:30]} 36. Ne3 {[%emt 0:00:30]} Kd7 {[%emt 0:00:30]} 37. c4 {[%emt 0:00:30]} dxc4 {[%emt 0:00:30]} 38. Bxc6+ {[%emt 0:00:30]} bxc6 {[%emt 0:00:30]} 39. bxc4 {[%emt 0:00:30]} c5 {[%emt 0:00:30]} 40. Kc3 {[%emt 0:00:30]} Na4+ {[%emt 0:00:30]} 41. Kd3 {[%emt 0:00:30]} 1/2-1/2

[Event "White Rook U14 Final 2019"]
[Site "Sochi"]
[Date "2019.06.07"]
[Round "6.6"]
[White "Komissarova, Soigina"]
[Black "Dyl, Nikita"]
[Result "1/2-1/2"]
[ECO "A24"]
[WhiteElo "1665"]
[BlackElo "1646"]
[Annotator "NA"]
[PlyCount "90"]
[EventDate "2019.06.02"]
[EventCountry "RUS"]
[SourceTitle "playchess.com"]
[Source "ChessBase"]
[SourceQuality "1"]
[TimeControl "5400+30"]

1. c4 {[%emt 0:17:54]} d6 {[%emt 0:17:58]} 2. g3 {[%emt 1:12:36]} g6 {[%emt 0:08:16]} 3. Bg2 {[%emt 0:00:00]} Bg7 {[%emt 0:00:00]} 4. Nc3 {[%emt 0:00:00]} Nf6 {[%emt 0:00:00]} 5. e4 {[%emt 0:00:00]} e5 {[%emt 0:00:00]} 6. Nge2 {[%emt 0:00:00]} O-O {[%emt 0:00:00]} 7. O-O {[%emt 0:00:00]} Ne8 {[%emt 0:00:00]} 8. d3 {[%emt 0:00:00]} h6 {[%emt 0:00:00]} 9. f4 {[%emt 0:00:00]} f5 {[%emt 0:00:00]} 10. Rb1 {[%emt 0:00:00]} a5 {[%emt 0:00:00]} 11. a3 {[%emt 0:00:00]} Nf6 {[%emt 0:00:00]} 12. h3 {[%emt 0:00:00]} Be6 {[%emt 0:00:00]} 13. exf5 {[%emt 0:00:00]} Bxf5 {[%emt 0:00:00]} 14. Kh2 {[%emt 0:00:00]} c6 {[%emt 0:00:00]} 15. b4 {[%emt 0:00:00]} axb4 {[%emt 0:00:00]} 16. axb4 {[%emt 0:00:00]} Nbd7 {[%emt 0:00:00]} 17. Bb2 {[%emt 0:00:00]} Kh7 {[%emt 0:00:00]} 18. Ra1 {[%emt 0:00:00]} Rxa1 {[%emt 0:00:00]} 19. Bxa1 {[%emt 0:00:00]} Qb6 {[%emt 0:00:00]} 20. b5 {[%emt 0:00:00]} Nc5 {[%emt 0:00:00]} 21. fxe5 {[%emt 0:00:00]} dxe5 {[%emt 0:00:00]} 22. Ne4 {[%emt 0:00:00]} Nfxe4 {[%emt 0:00:00]} 23. dxe4 {[%emt 0:00:00]} Bxe4 {[%emt 0:00:00]} 24. Rxf8 {[%emt 0:00:00]} Bxf8 {[%emt 0:00:00]} 25. Bxe5 {[%emt 0:00:00]} Bxg2 {[%emt 0:00:00]} 26. Kxg2 {[%emt 0:00:00]} cxb5 {[%emt 0:00:00]} 27. Qf1 {[%emt 0:00:00]} Qe6 {[%emt 0:00:00]} 28. Qxf8 {[%emt 0:00:00]} Qxe5 {[%emt 0:00:00]} 29. Qf7+ {[%emt 0:00:00]} Qg7 {[%emt 0:00:00]} 30. Qd5 {[%emt 0:00:00]} Qe7 {[%emt 0:00:00]} 31. Nd4 {[%emt 0:00:00]} bxc4 {[%emt 0:00:00]} 32. Qxc4 {[%emt 0:00:00]} h5 {[%emt 0:00:00]} 33. h4 {[%emt 0:00:00]} b6 {[%emt 0:00:00]} 34. Nf3 {[%emt 0:00:00]} Qb7 {[%emt 0:00:00]} 35. Kf2 {[%emt 0:00:00]} Ne4+ {[%emt 0:00:00]} 36. Qxe4 {[%emt 0:17:30]} Qxe4 {[%emt 1:21:46]} 37. Ng5+ {[%emt 0:00:30]} Kg7 {[%emt 0:00:30]} 38. Nxe4 {[%emt 0:00:30]} Kf7 {[%emt 0:00:30]} 39. Ke3 {[%emt 0:00:30]} Ke6 {[%emt 0:00:30]} 40. Kf3 {[%emt 0:00:30]} Kf5 {[%emt 0:00:30]} 41. Nc3 {[%emt 0:00:30]} g5 {[%emt 0:00:30]} 42. Nd5 {[%emt 0:00:30]} b5 {[%emt 0:00:30]} 43. Ne3+ {[%emt 0:00:30]} Kg6 {[%emt 0:00:30]} 44. Ke4 {[%emt 0:00:30]} gxh4 {[%emt 0:00:30]} 45. gxh4 {[%emt 0:00:30]} b4 {[%emt 0:00:30]} 1/2-1/2